bitfinex/quotes_ETHUSD_20251124
["timestamp","ask_amount","ask_price","bid_price","bid_amount"]
[1764006526788,0.1987,2930.0,2929.6,0.405504]
[1764006526927,0.1987,2930.0,2929.8,0.405504]
[1764006527128,0.002,2930.4,2930.0,10.3889]
[1764006527333,0.002,2930.4,2930.3,7.53822386]
[1764006527543,0.002,2930.4,2930.3,7.93526336]
[1764006527759,0.002,2930.4,2930.3,7.74570336]
[1764006527966,0.002,2930.4,2930.3,15.43187636]
[1764006528475,0.9831,2930.4,2930.3,9.89219797]
[1764006528637,0.9831,2930.4,2930.3,4.69465797]
[1764006529547,0.9831,2930.4,2930.2,3.41269065]
[1764006529772,0.4934,2930.3,2930.2,3.41269065]
[1764006529933,0.985,2930.3,2930.2,3.63769065]
[1764006530380,0.002,2930.4,2930.3,0.405504]
[1764006530598,0.4954,2930.4,2930.3,0.405504]
[1764006530744,0.4936,2930.4,2930.3,0.405504]
[1764006531090,0.987,2930.4,2930.3,0.405504]
[1764006531402,0.987,2930.4,2929.9,6.82617154]
[1764006531549,0.987,2930.4,2930.0,2.03871526]
[1764006531754,0.987,2930.4,2930.1,6.991098]
[1764006532061,0.002,2930.4,2930.3,5.788185]
[1764006532368,0.002,2930.4,2930.3,6.013185]
[1764006532552,0.987,2930.4,2930.3,6.013185]
[1764006532890,0.987,2930.4,2930.3,0.225]
[1764006533293,0.002,2930.4,2930.3,1.0322]
[1764006533451,0.002,2930.4,2930.3,5.66395739]
[1764006533786,0.002,2930.4,2930.3,5.84446139]
[1764006534089,0.002,2930.4,2930.3,15.82785739]
[1764006534515,0.002,2930.4,2930.3,13.22170739]
[1764006535052,0.002,2930.4,2930.3,15.82785739]
[1764006535487,0.002,2930.4,2930.3,16.23145739]
[1764006536181,1e-08,2930.7,2930.6,10.7925]
[1764006536371,1e-08,2930.7,2930.6,12.26630352]
[1764006537150,0.98500001,2930.7,2930.3,11.135003]
[1764006537350,0.18,2930.4,2930.3,5.68110986]
[1764006537608,0.18,2930.4,2930.3,3.41261986]
[1764006537750,0.6734,2930.4,2930.3,3.41261986]
[1764006537951,0.6734,2930.4,2930.3,4.13821397]
[1764006538151,0.6734,2930.4,2930.3,3.41261986]
[1764006538687,0.6734,2930.4,2930.0,4.09656017]
[1764006538688,0.6734,2930.4,2930.0,0.001]
[1764006538890,0.4916,2930.1,2930.0,0.001]
[1764006539257,0.985,2930.1,2930.0,0.001]
[1764006539669,0.985,2930.1,2930.0,0.34241886]
[1764006540192,0.985,2930.1,2930.0,1.06801297]
[1764006540362,0.4916,2930.1,2930.0,6.31283197]
[1764006540562,0.4934,2930.4,2930.0,1.06801297]
[1764006540763,1e-08,2930.7,2930.0,0.001]
[1764006540764,0.4916,2930.1,2930.0,0.001]
[1764006540978,1e-08,2930.7,2930.0,0.406504]
[1764006541150,1e-08,2930.7,2930.3,0.405504]
[1764006541357,1e-08,2930.7,2930.6,11.11449411]
[1764006541558,1e-08,2930.7,2930.6,14.93036463]
[1764006541789,1e-08,2930.7,2930.6,16.76463947]
[1764006542223,1e-08,2930.7,2930.6,16.36103947]
[1764006542606,1e-08,2930.7,2930.6,16.76463947]
[1764006542923,1e-08,2930.7,2930.6,17.16823947]
[1764006543222,1e-08,2930.7,2930.6,17.39323947]
[1764006543526,1e-08,2930.7,2930.6,16.36103947]
[1764006543698,1e-08,2930.7,2930.6,9.04534847]
[1764006544392,1e-08,2930.7,2930.6,6.60264347]
[1764006544592,1e-08,2930.7,2930.6,15.55896463]
[1764006544892,1e-08,2930.7,2930.6,15.15536463]
[1764006545118,1e-08,2930.7,2930.6,15.55896463]
[1764006546510,1e-08,2930.7,2930.6,5.57556863]
[1764006546688,1e-08,2930.7,2930.6,15.55896463]
[1764006546891,1e-08,2930.7,2930.6,17.76442347]
[1764006547224,1e-08,2930.7,2930.6,8.99884847]
[1764006547524,0.49160001,2930.7,2930.6,10.85102063]
[1764006547709,0.98500001,2930.7,2930.6,9.73170163]
[1764006548598,0.98500001,2930.7,2930.6,3.41227052]
[1764006548811,0.49160001,2930.7,2930.6,10.10990952]
[1764006549096,1e-08,2930.7,2930.6,12.67484285]
[1764006549540,1e-08,2930.7,2930.6,13.40043696]
[1764006549844,1e-08,2930.7,2930.6,16.91119396]
[1764006550039,1e-08,2930.7,2930.6,16.38179396]
[1764006550256,1e-08,2930.7,2930.6,7.75983752]
[1764006550415,1e-08,2930.7,2930.6,7.37205463]
[1764006550616,1e-08,2930.7,2930.6,10.88531263]
[1764006550817,1e-08,2930.7,2930.6,10.68001263]
[1764006551122,1e-08,2930.7,2930.6,14.15031363]
[1764006551343,1e-08,2930.7,2930.6,9.83942637]
[1764006551651,1e-08,2930.7,2930.6,17.31423437]
[1764006552354,1e-08,2930.7,2930.6,16.28303437]
[1764006552551,1e-08,2930.7,2930.6,16.50703437]
[1764006553168,1e-08,2930.7,2930.6,16.91063437]
[1764006553316,1e-08,2930.7,2930.6,17.31423437]
[1764006553841,1e-08,2930.7,2930.6,16.91063437]
[1764006554232,1e-08,2930.7,2930.6,15.62462337]
[1764006554434,1e-08,2930.7,2930.6,12.87130237]
[1764006554643,1e-08,2930.7,2930.6,16.50703437]
[1764006554844,1e-08,2930.7,2930.6,16.54340837]
[1764006555028,1e-08,2930.7,2930.6,16.94700837]
[1764006555770,1e-08,2930.7,2930.6,17.31423437]
[1764006556131,1e-08,2930.7,2930.6,16.91063437]
[1764006556332,1e-08,2930.7,2930.6,12.27914337]
[1764006556556,1e-08,2930.7,2930.6,9.65856937]
[1764006556738,1e-08,2930.7,2930.6,13.31798937]
[1764006556950,0.49160001,2930.7,2930.6,9.30204852]
[1764006557156,1e-08,2930.7,2930.6,9.49222963]
[1764006557675,1e-08,2930.7,2930.6,14.75076463]
[1764006557976,1e-08,2930.7,2930.6,22.27360469]
[1764006558201,1e-08,2930.7,2930.6,22.67720469]
[1764006558492,1e-08,2930.7,2930.6,25.73818353]
[1764006559001,1e-08,2930.7,2930.6,16.11237247]
[1764006559156,1e-08,2930.7,2930.6,16.51597247]
[1764006559748,1e-08,2930.7,2930.6,17.77334347]
[1764006560090,1e-08,2930.7,2930.6,15.34315147]
[1764006560242,1e-08,2930.7,2930.6,15.74675147]
[1764006560449,1e-08,2930.7,2930.6,16.15035147]
[1764006560661,1e-08,2930.7,2930.6,16.24955147]
[1764006560895,1e-08,2930.7,2930.6,18.27614347]
[1764006562625,1e-08,2930.7,2930.6,17.77334347]
[1764006563325,1e-08,2930.7,2930.6,18.17694347]
[1764006563781,1e-08,2930.7,2930.6,8.19354747]
[1764006563975,1e-08,2930.7,2930.6,18.17694347]
[1764006564872,1e-08,2930.7,2930.6,7.96954747]
[1764006565175,1e-08,2930.7,2930.6,18.17694347]
[1764006566364,1e-08,2930.7,2930.6,17.77334347]
[1764006566855,1e-08,2930.7,2930.6,17.14574347]
[1764006567157,1e-08,2930.7,2930.6,17.77334347]
[1764006567378,1e-08,2930.7,2930.6,18.27614347]
[1764006568276,1e-08,2930.7,2930.6,17.87254347]
[1764006568446,1e-08,2930.7,2930.6,18.21534347]
[1764006568633,1e-08,2930.7,2930.6,18.61894347]
[1764006569269,3.40941069,2933.1,2931.6,10.3889]
[1764006569438,0.4855,2931.9,2931.8,11.11449411]
[1764006569762,0.973,2931.9,2931.8,5.87538811]
[1764006569965,0.973,2931.9,2931.8,4.76238311]
[1764006570131,0.973,2931.9,2931.8,7.41748786]
[1764006570527,0.973,2931.9,2931.8,3.63487386]
[1764006571458,0.973,2931.9,2931.8,0.224]
[1764006571659,0.973,2931.9,2931.6,0.224]
[1764006571846,0.4855,2931.8,2931.6,0.224]
[1764006572087,0.4875,2931.7,2931.6,3.63510656]
[1764006572256,0.4875,2931.7,2931.6,10.70686133]
[1764006572455,0.973,2931.7,2931.6,7.92833033]
[1764006573148,0.973,2931.7,2931.6,8.65392444]
[1764006573353,0.973,2931.7,2931.6,13.45371544]
[1764006573787,0.6716,2932.0,2931.7,0.405504]
[1764006573980,0.6716,2932.0,2931.8,8.934655]
[1764006574174,0.4855,2931.9,2931.8,12.75103286]
[1764006574380,0.4855,2931.9,2931.8,13.80351297]
[1764006574381,0.973,2931.9,2931.8,13.80351297]
[1764006574559,0.973,2931.9,2931.8,15.79829259]
[1764006574760,0.973,2931.9,2931.8,11.57918959]
[1764006575381,0.973,2931.9,2931.8,16.52014759]
[1764006575758,0.973,2931.9,2931.8,7.74033986]
[1764006575962,0.973,2931.9,2931.8,7.89611786]
[1764006576192,0.973,2931.9,2931.8,7.71461386]
[1764006576403,0.973,2931.9,2931.8,7.67996086]
[1764006576603,0.973,2931.9,2931.7,3.41093121]
[1764006576807,0.6834,2931.8,2931.7,3.41093121]
[1764006578274,0.6834,2931.8,2931.5,6.82244584]
[1764006578465,0.3927,2931.7,2931.5,6.82244584]
[1764006578662,0.4875,2931.6,2931.5,3.41122292]
[1764006579101,0.973,2931.6,2931.5,3.41122292]
[1764006579806,0.973,2931.6,2931.4,3.63533069]
[1764006579969,0.8801,2931.5,2931.4,3.63533069]
[1764006580169,0.8801,2931.5,2931.4,12.49201069]
[1764006580394,0.3946,2931.5,2931.4,13.60219228]
[1764006580596,0.1861,2932.0,2931.7,0.405504]
[1764006580803,0.6716,2932.0,2931.9,3.354406]
[1764006581004,1.1591,2932.0,2931.9,3.354406]
[1764006581203,1.1591,2932.0,2931.9,7.267338]
[1764006581506,1.1591,2932.0,2931.9,3.974223]
[1764006582284,1.1591,2932.0,2931.9,11.57777952]
[1764006582484,1.1591,2932.0,2931.9,8.95341752]
[1764006582697,1.1591,2932.0,2931.9,10.9378398]
[1764006583310,1.1591,2932.0,2931.9,13.4486318]
[1764006583488,1.1591,2932.0,2931.9,10.9364188]
[1764006584210,1.1591,2932.0,2931.9,12.7204938]
[1764006585271,1.1591,2932.0,2931.9,13.1257748]
[1764006585476,0.6736,2932.0,2931.9,13.1257748]
[1764006585930,1.1591,2932.0,2931.9,5.99730152]
[1764006586218,1.1591,2932.0,2931.9,3.41075752]
[1764006586397,1.1591,2932.0,2931.9,6.32418452]
[1764006586722,1.1591,2932.0,2931.9,6.54818452]
[1764006586924,1.1591,2932.0,2931.9,6.00841752]
[1764006587134,1.1611,2932.0,2931.9,6.00841752]
[1764006587426,1.1611,2932.0,2931.9,3.41075752]
[1764006587586,1.1611,2932.0,2931.9,3.63475752]
[1764006587784,1.1611,2932.0,2931.9,11.77399652]
[1764006588015,1.1611,2932.0,2931.9,10.04723252]
[1764006588200,1.1611,2932.0,2931.9,3.63475752]
[1764006588743,0.6756,2932.0,2931.9,9.76813252]
[1764006589030,0.6756,2932.0,2931.9,14.93615319]
[1764006589383,0.6756,2932.0,2931.9,15.6617473]
[1764006590635,0.002,2932.0,2931.9,16.4708513]
[1764006590939,0.002,2932.0,2931.9,16.8744513]
[1764006591133,0.002,2932.6,2932.3,0.405504]
[1764006591288,0.002,2932.6,2932.5,11.11449411]
[1764006591491,0.002,2932.6,2932.5,12.24834352]
[1764006592625,0.002,2932.6,2932.5,15.65840319]
[1764006592789,0.002,2932.6,2932.5,16.06200319]
[1764006592994,0.1919,2934.1,2932.9,9.983396]
[1764006592995,0.1888,2933.9,2932.9,9.983396]
[1764006593294,0.1888,2933.9,2932.8,1.47389811]
[1764006593295,0.1888,2933.9,2933.4,9.983396]
[1764006593523,0.4814,2933.8,2933.6,8.371214]
[1764006593915,0.4901,2933.7,2933.6,8.371214]
[1764006594094,0.1888,2933.9,2933.6,8.371214]
[1764006594290,0.6702,2933.9,2933.6,8.371214]
[1764006594495,0.4901,2933.7,2933.6,7.73224]
[1764006594724,0.4901,2933.7,2933.6,11.14102101]
[1764006595219,0.9715,2933.7,2933.6,9.34641901]
[1764006595430,0.9715,2933.7,2933.6,8.76629701]
[1764006596134,0.1888,2933.9,2933.7,3.007015]
[1764006596335,0.9715,2933.8,2932.7,0.72559411]
[1764006596492,0.4814,2933.8,2932.9,2.056375]
[1764006596802,0.4814,2933.7,2933.0,6.81895668]
[1764006597205,0.4901,2933.1,2933.0,5.46321134]
[1764006597599,0.9715,2933.1,2933.0,5.46321134]
[1764006599023,0.9715,2933.1,2933.0,3.40947834]
[1764006599651,0.9715,2933.1,2933.0,6.94805934]
[1764006600037,0.9715,2933.1,2933.0,5.61305934]
[1764006600235,0.9715,2933.1,2933.0,3.40947834]
[1764006601726,0.9715,2933.1,2932.9,3.63356279]
[1764006601926,0.7009,2933.0,2932.9,3.63356279]
[1764006602464,0.7009,2933.0,2932.9,0.224]
[1764006602673,0.7009,2933.0,2932.6,0.224]
[1764006602960,0.1888,2932.9,2932.7,6.81965424]
[1764006603163,0.4874,2932.8,2932.6,0.224]
[1764006603326,0.2222,2932.7,2932.3,0.224]
[1764006603525,0.4814,2932.8,2932.3,0.224]
[1764006603745,0.4901,2932.4,2932.3,3.751463]
[1764006603944,0.4901,2932.4,2932.3,4.19916871]
[1764006604147,0.9715,2932.4,2932.3,3.80316871]
[1764006604347,0.9715,2932.4,2932.3,0.224]
[1764006604667,0.9715,2932.4,2932.3,2.321556]
[1764006604875,0.9715,2932.4,2932.3,3.63429226]
[1764006605645,0.9715,2932.4,2931.9,0.72659411]
[1764006605646,0.9715,2932.4,2931.9,0.001]
[1764006605831,0.4814,2932.3,2932.1,0.224]
[1764006606055,0.4814,2932.8,2932.1,0.92862824]
[1764006606250,0.4901,2932.2,2932.1,0.92862824]
[1764006606552,0.4814,2932.8,2932.2,6.986375]
[1764006606754,0.1888,2932.9,2932.2,6.986375]
[1764006606755,0.4814,2932.7,2932.2,6.986375]
[1764006606963,0.4901,2932.3,2932.2,10.39678356]
[1764006607281,0.4901,2932.3,2932.2,12.21144057]
[1764006608587,0.4901,2932.3,2932.2,11.90361457]
[1764006608770,0.9715,2932.3,2932.2,10.64534057]
[1764006608972,0.9715,2932.3,2932.2,8.64534057]
[1764006609154,0.9715,2932.3,2932.2,6.83068356]
[1764006610086,0.4901,2932.3,2932.2,6.83068356]
[1764006610474,0.9715,2932.3,2932.2,7.05468356]
[1764006611377,0.9715,2932.3,2932.2,0.224]
[1764006611578,0.9715,2932.3,2932.2,3.63440856]
[1764006612457,0.9715,2932.3,2932.2,7.51329956]
[1764006612791,0.9715,2932.3,2932.2,0.224]
[1764006612952,0.9715,2932.3,2932.2,3.63440856]
[1764006614790,0.9715,2932.3,2932.1,3.41046464]
[1764006614967,0.7009,2932.2,2932.1,3.41046464]
[1764006616257,0.7009,2932.2,2932.0,3.6345884]
[1764006616459,0.9688,2932.1,2932.0,3.6345884]
[1764006616964,0.9688,2932.1,2931.9,3.41172654]
[1764006617270,0.7089,2932.0,2931.9,3.41175752]
[1764006617680,0.7089,2932.0,2931.9,0.001]
[1764006618464,0.2222,2932.0,2931.9,0.001]
[1764006618663,0.4867,2932.2,2931.9,0.68339804]
[1764006618890,0.4867,2932.2,2931.9,0.001]
[1764006619760,0.4635,2932.6,2932.1,10.23157461]
[1764006619955,0.4635,2932.6,2932.1,6.82104974]
[1764006620159,0.4605,2932.2,2932.0,0.223]
[1764006620401,0.2665,2932.1,2932.0,3.6336412]
[1764006620916,0.73,2932.1,2932.0,3.6336412]
[1764006623673,0.4635,2932.5,2932.1,6.473954]
[1764006623899,0.4635,2932.5,2932.1,4.859454]
[1764006624394,0.4605,2932.2,2932.1,4.859454]
[1764006624594,0.4635,2932.5,2932.1,4.859454]
[1764006624595,0.4635,2932.5,2932.1,11.10497174]
[1764006624904,0.4635,2932.5,2932.1,11.77609983]
[1764006625390,0.4635,2932.8,2932.2,9.983396]
[1764006625793,0.4635,2932.8,2932.3,4.515807]
[1764006625993,0.4635,2932.8,2932.4,0.223]
[1764006626514,0.4605,2932.5,2932.4,0.223]
[1764006626713,0.4605,2932.5,2932.4,10.02038996]
[1764006627274,0.924,2932.5,2932.4,3.63317596]
[1764006628377,0.4605,2932.5,2932.4,3.63317596]
[1764006628781,0.924,2932.5,2932.4,3.63317596]
[1764006629817,0.924,2932.5,2932.1,3.41045219]
[1764006630123,0.4616,2932.4,2932.1,6.82097706]
[1764006630316,0.4616,2932.4,2932.1,3.41045219]
[1764006630617,0.4605,2932.2,2932.1,3.41045219]
[1764006631223,0.924,2932.2,2932.0,3.41163808]
[1764006631418,0.2665,2932.1,2932.0,3.41163808]
[1764006631623,0.73,2932.1,2932.0,3.41163808]
[1764006633225,0.73,2932.1,2932.0,0.001]
[1764006634899,3.5984156,2932.9,2932.1,2.73674]
[1764006634900,0.4635,2932.8,2932.1,2.73674]
[1764006635222,0.4635,2932.8,2932.2,6.82081712]
[1764006635525,0.4635,2932.8,2932.0,0.001]
[1764006635721,0.2665,2932.1,2932.0,3.41161999]
[1764006636157,0.73,2932.1,2932.0,3.41161999]
[1764006636737,0.73,2932.1,2932.0,0.001]
[1764006638027,4.55455665,2932.1,2931.7,0.001]
[1764006638218,4.55455665,2932.1,2931.6,0.001]
[1764006638219,0.4605,2931.8,2931.6,0.001]
[1764006638525,0.6835,2931.7,2931.6,0.001]
[1764006638926,1.147,2931.7,2931.6,0.001]
[1764006639162,4.55799021,2931.7,2931.6,0.001]
[1764006640127,11.37997063,2931.7,2931.3,0.001]
[1764006640379,0.4605,2931.4,2931.3,0.001]
[1764006640971,8.01141169,2931.4,2931.3,0.001]
[1764006641174,12.29645156,2931.4,2931.3,0.001]
[1764006642726,5.20903987,2931.4,2931.3,0.001]
[1764006644583,1.79770058,2931.4,2931.3,0.001]
[1764006644760,0.924,2931.4,2931.3,0.001]
[1764006645232,0.1925,2931.9,2931.3,0.001]
[1764006646137,0.656,2931.9,2931.3,0.001]
[1764006646766,0.4605,2931.4,2931.3,0.001]
[1764006647130,0.924,2931.4,2931.3,0.001]
[1764006647872,4.33533929,2931.4,2931.3,0.001]
[1764006648479,0.924,2931.4,2931.3,0.001]
[1764006648843,4.33533929,2931.4,2931.3,0.001]
[1764006650785,4.55833929,2931.4,2931.3,0.001]
[1764006651262,4.33533929,2931.4,2931.3,0.001]
[1764006651577,6.0417387,2931.4,2931.3,0.001]
[1764006653954,5.8187387,2931.4,2931.3,0.001]
[1764006654282,6.0417387,2931.4,2931.3,0.001]
[1764006654444,5.8187387,2931.4,2931.3,0.001]
[1764006654644,6.0417387,2931.4,2931.3,0.001]
[1764006655764,10.1786721,2931.4,2931.2,0.001]
[1764006655965,2.07689152,2931.3,2931.2,0.001]
[1764006656877,5.48834718,2931.3,2931.2,0.001]
[1764006658044,5.71134718,2931.3,2931.2,0.001]
[1764006660392,6.43694129,2931.3,2931.2,0.001]
[1764006661219,1.20779411,2931.0,2930.5,0.001]
[1764006661520,0.72559411,2930.3,2930.0,0.001]
[1764006661820,0.2502,2930.1,2930.0,0.001]
[1764006661987,0.223,2930.2,2929.4,0.001]
[1764006661988,8.2905058,2929.8,2929.4,0.001]
[1764006662190,0.2544,2929.5,2929.4,0.001]
[1764006662502,0.7104,2929.5,2929.4,0.001]
[1764006662871,4.84954591,2929.5,2929.4,0.001]
[1764006664907,0.72559411,2929.4,2928.0,3.60725322]
[1764006665072,7.08741169,2929.1,2928.0,3.60725322]
[1764006665267,0.65434883,2929.0,2928.0,3.60725322]
[1764006665500,0.8659,2928.9,2928.0,3.60725322]
[1764006665702,0.72559411,2929.4,2928.0,3.60725322]
[1764006665703,0.1869,2929.3,2928.9,0.4533]
[1764006665975,0.223,2929.2,2928.1,0.4773]
[1764006666195,0.223,2929.2,2928.2,1.09151543]
[1764006666602,0.223,2929.1,2928.3,0.4773]
[1764006666820,0.223,2929.1,2928.4,3.41483403]
[1764006667033,3.63704875,2929.1,2928.4,6.82966806]
[1764006667330,3.63704875,2929.1,2928.4,3.41483403]
[1764006667331,0.36370488,2929.0,2928.4,3.41483403]
[1764006667534,0.81970488,2929.0,2928.3,3.41492185]
[1764006667934,0.36370488,2929.0,2928.4,0.4773]
[1764006668235,0.223,2928.9,2928.4,0.4773]
[1764006668602,0.223,2928.8,2928.4,0.4773]
[1764006669152,3.63739292,2928.8,2928.1,3.4151839]
[1764006669308,4.09339292,2928.8,2928.1,6.8303678]
[1764006669702,3.98394943,2928.8,2928.1,3.4151839]
[1764006670328,7.39834235,2928.8,2928.1,3.4151839]
[1764006670634,0.73983424,2928.7,2928.0,3.60726028]
[1764006670840,7.08741169,2928.6,2927.4,1.20289411]
[1764006671012,0.223,2928.5,2927.8,6.83106768]
[1764006671202,0.72559411,2928.9,2927.8,7.56190445]
[1764006671407,0.223,2928.8,2928.4,0.4533]
[1764006671736,0.679,2928.8,2927.9,0.4773]
[1764006672331,1.50228673,2928.8,2927.9,0.4773]
[1764006672731,1.27928673,2928.8,2927.9,0.4773]
[1764006673039,0.223,2928.7,2928.0,6.83060108]
[1764006673411,0.223,2928.7,2928.1,0.1844]
[1764006673907,1.16828655,2929.2,2928.1,0.1844]
[1764006674114,0.94859411,2929.1,2928.2,1.52033016]
[1764006674438,0.223,2929.0,2928.2,0.4773]
[1764006675031,0.679,2929.0,2928.1,0.1844]
[1764006675235,3.41425108,2928.9,2928.2,3.41506727]
[1764006675426,3.87025108,2928.9,2928.1,3.59953888]
[1764006675613,0.456,2928.8,2928.1,3.59953888]
[1764006675815,0.61002511,2928.7,2928.1,3.59953888]
[1764006676642,0.61002511,2928.7,2928.1,0.1844]
[1764006676845,0.84302511,2928.7,2928.1,3.59955311]
[1764006677050,0.223,2928.6,2927.9,3.41541719]
[1764006677239,6.82943486,2928.5,2927.8,3.41547927]
[1764006677459,0.75084349,2928.4,2927.7,3.41560841]
[1764006677735,0.75084349,2928.4,2927.7,6.65016892]
[1764006677940,0.6691,2927.8,2927.3,0.72559411]
[1764006678139,0.48,2927.4,2926.6,3.41693432]
[1764006678336,0.48,2927.4,2925.9,0.1844]
[1764006678337,0.223,2927.3,2926.4,3.41710286]
[1764006678525,0.223,2927.3,2926.3,0.4773]
[1764006678526,0.77904117,2927.2,2926.3,0.4773]
[1764006678912,0.77904117,2927.2,2927.1,0.4533]
[1764006679143,0.223,2927.2,2926.5,0.1329]
[1764006679340,7.51155224,2927.2,2926.5,0.1329]
[1764006679820,7.51155224,2927.2,2927.1,0.001]
[1764006679821,4.09523394,2927.2,2927.1,0.001]
[1764006680349,4.58913394,2927.2,2927.1,0.001]
[1764006680552,0.72559411,2927.6,2927.1,0.001]
[1764006680855,0.68383076,2927.5,2927.1,0.001]
[1764006681267,3.88300054,2927.4,2927.1,0.001]
[1764006681453,0.4939,2927.2,2927.1,0.001]
[1764006681966,0.9609,2927.2,2927.1,0.001]
[1764006683158,5.10272805,2927.2,2927.1,0.001]
[1764006683345,5.95461299,2927.2,2927.1,0.001]
[1764006683759,3.41498365,2928.3,2927.1,0.4671]
[1764006684064,0.6691,2928.5,2927.1,0.4671]
[1764006684065,0.72559411,2927.6,2927.1,0.4671]
[1764006684270,0.223,2927.5,2927.1,0.5701]
[1764006684469,0.72559411,2927.6,2927.1,0.5701]
[1764006684768,4.06943384,2927.8,2927.1,0.5701]
[1764006684989,0.223,2927.7,2927.1,0.5701]
[1764006685268,3.63881205,2927.6,2927.1,0.5701]
[1764006685434,0.223,2927.6,2927.1,3.98642869]
[1764006685635,0.182,2928.0,2927.2,0.4693]
[1764006685963,0.94859411,2927.9,2927.2,0.4693]
[1764006686163,0.94859411,2927.9,2927.1,3.52032869]
[1764006686368,0.223,2927.8,2927.1,3.52032869]
[1764006686540,0.223,2927.8,2927.1,0.104]
[1764006686739,0.467,2927.7,2927.1,0.001]
[1764006687260,0.467,2927.7,2927.1,0.001]
[1764006687570,0.4939,2927.2,2927.1,0.001]
[1764006687871,0.7169,2927.2,2927.1,0.001]
[1764006688052,1.1839,2927.2,2927.1,0.001]
[1764006688570,0.9609,2927.2,2927.1,0.001]
[1764006688880,6.82966806,2928.4,2927.1,1.0394]
[1764006689048,0.182,2928.2,2927.4,0.4661]
[1764006689252,0.649,2928.2,2927.4,0.4661]
[1764006689449,0.72559411,2928.0,2927.4,0.4661]
[1764006689655,0.223,2927.9,2927.4,0.4661]
[1764006690654,0.467,2927.8,2927.1,0.104]
[1764006691171,1.00089619,2927.9,2927.1,0.104]
[1764006691674,10.71360152,2927.8,2927.1,0.001]
[1764006691877,0.72559411,2927.7,2927.1,0.001]
[1764006692174,1.19259411,2927.7,2927.1,0.001]
[1764006692474,0.72559411,2927.7,2927.2,0.103]
[1764006692644,0.223,2927.6,2927.2,0.103]
[1764006692840,0.69,2927.6,2927.1,0.001]
[1764006693242,0.467,2927.5,2927.1,0.001]
[1764006693684,3.41600054,2927.4,2927.1,0.001]
[1764006693844,7.24260113,2927.4,2927.1,0.001]
[1764006694045,0.223,2927.3,2927.1,0.001]
[1764006695775,5.10272805,2927.2,2927.1,0.001]
[1764006696184,1.21949411,2927.2,2927.1,0.001]
[1764006696397,0.94859411,2927.2,2927.1,0.001]
[1764006696698,2.3870262,2927.2,2927.1,0.001]
[1764006697412,1.13109811,2927.1,2925.7,0.1329]
[1764006697567,0.72559411,2926.4,2925.5,0.1329]
[1764006697762,0.72559411,2926.2,2925.5,0.1329]
[1764006697963,0.91459633,2926.1,2925.3,0.1329]
[1764006698206,0.223,2926.1,2925.4,0.4693]
[1764006699070,0.223,2926.1,2925.3,0.1329]
[1764006699275,0.69,2926.1,2925.3,0.1329]
[1764006699485,0.223,2926.0,2925.3,0.1329]
[1764006699705,0.223,2926.0,2925.0,4.07244743]
[1764006699706,6.8355036,2925.9,2925.0,0.6537]
[1764006700021,0.75255036,2925.8,2925.0,3.6031975]
[1764006700200,1.19259411,2926.0,2925.0,3.6031975]
[1764006700201,0.223,2925.7,2925.1,0.4693]
[1764006700405,0.223,2925.7,2925.0,0.1844]
[1764006700770,0.223,2925.7,2925.0,0.6537]
[1764006700981,0.72559411,2925.9,2925.0,7.49127582]
[1764006701305,0.223,2925.8,2925.1,1.19489411]
[1764006701483,0.223,2925.7,2925.2,0.82168699]
[1764006701678,0.223,2925.7,2925.3,3.4184528]
[1764006701884,0.223,2925.7,2925.6,0.4661]
[1764006702704,3.41768135,2926.0,2925.6,0.4661]
[1764006702910,0.223,2925.9,2925.7,0.4693]
[1764006703206,0.223,2925.9,2925.3,6.8369056]
[1764006703207,0.223,2926.0,2925.4,0.4693]
[1764006703407,4.14291684,2926.3,2925.8,0.4661]
[1764006703568,0.63729168,2926.2,2925.9,0.4661]
[1764006703770,0.41429168,2926.2,2925.9,0.4661]
[1764006703977,0.223,2926.1,2925.9,0.4661]
[1764006704377,0.223,2926.0,2925.9,0.4661]
[1764006704907,0.223,2926.3,2925.9,0.9354]
[1764006705210,0.223,2926.3,2925.9,0.4661]
[1764006705875,0.223,2926.3,2925.2,4.24022362]
[1764006705876,0.223,2926.3,2925.3,3.82393248]
[1764006706079,0.467,2926.7,2925.4,0.46456195]
[1764006706281,0.72559411,2926.5,2925.4,0.93386195]
[1764006706681,0.72559411,2926.5,2925.5,0.4693]
[1764006707610,3.41683759,2926.7,2926.4,0.635]
[1764006707911,3.63982612,2926.7,2926.4,0.635]
[1764006708115,0.6681,2927.1,2926.4,0.635]
[1764006708423,7.05598932,2927.0,2926.6,0.4506]
[1764006708620,0.72379893,2926.9,2926.6,0.4506]
[1764006708917,0.223,2926.8,2926.6,0.4506]
[1764006709138,0.223,2926.8,2926.4,0.1844]
[1764006709477,3.41649466,2927.0,2926.4,3.60152193]
[1764006709674,0.223,2926.9,2926.4,0.6738]
[1764006709979,3.41670083,2926.8,2926.4,0.1844]
[1764006710298,4.56044194,2926.9,2926.4,0.1844]
[1764006710475,4.36344194,2926.9,2926.4,0.6738]
[1764006711194,3.63964301,2926.9,2926.4,0.6738]
[1764006711413,3.63964301,2926.9,2926.0,0.1329]
[1764006711414,0.6928,2926.8,2926.0,0.1329]
[1764006711630,0.197,2926.8,2926.0,3.55049475]
[1764006711833,0.197,2926.8,2926.0,4.03989475]
[1764006712128,0.223,2926.7,2926.1,0.4894]
[1764006712336,0.223,2926.7,2926.2,0.74575297]
[1764006712521,0.223,2926.7,2926.3,0.4894]
[1764006713233,3.41648298,2927.0,2926.6,0.4953]
[1764006713531,3.41639397,2927.1,2926.6,0.4953]
[1764006713728,0.223,2927.0,2926.6,0.4953]
[1764006714322,3.63952203,2927.0,2926.6,0.4953]